fUSD/lending_fUSD_20250331
["ID","MTS","AMOUNT","RATE_DAILY","PERIOD"]
[356933299,1743436280042,-529.9,0.0004904,120]
[356933300,1743436280054,-500.0,0.0004904,120]
[356933301,1743436280064,-1004.52,0.0004904,120]
[356933302,1743436280074,-500.0,0.0004904,120]
[356933303,1743436280084,-500.0,0.0004904,120]
[356933304,1743436280094,-500.0,0.0004904,120]
[356933305,1743436280104,-500.0,0.0004904,120]
[356933306,1743436280114,-500.0,0.0004904,120]
[356933307,1743436280125,-500.0,0.0004904,120]
[356933308,1743436280135,-500.0,0.0004904,120]
[356933309,1743436280146,-500.0,0.0004904,120]
[356933310,1743436280156,-500.0,0.0004904,120]
[356933311,1743436280167,-500.0,0.0004904,120]
[356933312,1743436280177,-500.0,0.0004904,120]
[356933313,1743436280187,-500.0,0.0004904,120]
[356933314,1743436280197,-571.24,0.0004904,120]
[356933315,1743436280208,-500.0,0.0004904,120]
[356933316,1743436280218,-500.0,0.0004904,120]
[356933317,1743436280229,-333.80764351,0.00049041,120]
[356933318,1743436280239,-500.0,0.00049041,120]
[356933319,1743436280250,-500.0,0.00049041,120]
[356933320,1743436280260,-413.1,0.00049041,120]
[356933321,1743436280270,-500.0,0.00049041,120]
[356933322,1743436280280,-508.2,0.00049041,120]
[356933323,1743436280290,-500.0,0.00049041,120]
[356933324,1743436280302,-500.0,0.00049041,120]
[356933325,1743436280313,-500.0,0.00049041,120]
[356933326,1743436280323,-500.0,0.00049041,120]
[356933327,1743436280334,-500.0,0.00049041,120]
[356933328,1743436280344,-500.0,0.00049041,120]
[356933329,1743436280355,-388.72775602,0.00049041,120]
[356933330,1743436280365,-500.0,0.00049041,120]
[356933331,1743436280375,-500.0,0.00049041,120]
[356933332,1743436280384,-500.0,0.00049041,120]
[356933333,1743436280396,-526.98,0.00049041,2]
[356933334,1743436280406,-500.0,0.00049041,120]
[356933335,1743436280417,-204.5,0.00049041,120]
[356933336,1743436280428,-659.44,0.00049041,120]
[356933337,1743436280438,-500.0,0.00049041,120]
[356933338,1743436280448,-500.0,0.00049041,120]
[356933339,1743436280459,-500.0,0.00049041,120]
[356933340,1743436280469,-500.0,0.00049041,120]
[356933341,1743436280479,-500.0,0.00049041,120]
[356933342,1743436280488,-500.0,0.00049041,120]
[356933343,1743436280498,-500.0,0.00049041,120]
[356933344,1743436280508,-507.27422385,0.00049041,120]
[356933345,1743436280519,-500.0,0.00049041,120]
[356933346,1743436280529,-516.50502682,0.00049041,120]
[356933347,1743436280539,-500.0,0.00049041,120]
[356933348,1743436280550,-507.44811139,0.00049041,120]
[356933349,1743436280560,-510.36434525,0.00049041,120]
[356933350,1743436280570,-523.1453853,0.00049041,120]
[356933351,1743436280581,-515.64212106,0.00049041,120]
[356933352,1743436280591,-407.72386776,0.00049041,120]
[356933353,1743436280601,-527.34571273,0.00049041,120]
[356933354,1743436280611,-500.54682195,0.00049041,120]
[356933355,1743436280622,-500.0,0.00049041,120]
[356933356,1743436280631,-512.16057463,0.00049041,120]
[356933357,1743436280642,-527.43562565,0.00049041,120]
[356933358,1743436280652,-500.0,0.00049041,120]
[356933359,1743436280661,-512.2376541,0.00049041,120]
[356933360,1743436280671,-500.0,0.00049041,120]
[356933361,1743436280681,-500.0,0.00049041,120]
[356933362,1743436280692,-500.0,0.00049041,120]
[356933363,1743436280702,-500.0,0.00049041,120]
[356933364,1743436280712,-500.0,0.00049041,120]
[356933365,1743436280722,-506.52724684,0.00049041,120]
[356933366,1743436280732,-765.48,0.00049041,120]
[356933367,1743436280742,-500.0,0.00049041,120]
[356933368,1743436280752,-151.0,0.00049041,14]
[356933369,1743436280762,-274.05,0.00049041,120]
[356933370,1743436280772,-583.34553668,0.00049041,120]
[356933371,1743436280782,-500.0,0.00049041,120]
[356933372,1743436280791,-500.0,0.00049041,120]
[356933373,1743436280802,-500.0,0.00049041,100]
[356933374,1743436280813,-500.0,0.00049041,2]
[356933375,1743436280824,-500.0,0.00049041,120]
[356933376,1743436280836,-500.0,0.00049041,120]
[356933377,1743436280847,-500.0,0.00049041,120]
[356933378,1743436280857,-500.0,0.00049041,120]
[356933379,1743436280867,-500.0,0.00049214,120]
[356933380,1743436280877,-500.0,0.00049214,120]
[356933381,1743436280887,-500.0,0.00049214,120]
[356933382,1743436280898,-579.66,0.00049214,120]
[356933383,1743436280908,-500.0,0.00049214,120]
[356933384,1743436280918,-500.0,0.00049214,120]
[356933385,1743436280928,-415.36,0.00049214,120]
[356933386,1743436280938,-500.0,0.00049214,120]
[356933387,1743436280947,-585.18,0.00049214,120]
[356933388,1743436280957,-319.36234901,0.00049214,10]
[356933389,1743436280966,-500.0,0.00049214,120]
[356933390,1743436280976,-500.0,0.00049214,120]
[356933391,1743436280986,-500.0,0.00049214,120]
[356933392,1743436280996,-500.0,0.00049214,120]
[356933393,1743436281006,-500.0,0.00049214,120]
[356933394,1743436281016,-500.0,0.00049214,120]
[356933395,1743436281026,-500.0,0.00049214,120]
[356933396,1743436281035,-500.0,0.00049214,120]
[356933397,1743436281046,-500.0,0.00049214,120]
[356933398,1743436281055,-500.0,0.00049214,120]
[356933399,1743436281065,-590.71262171,0.00049214,120]
[356933400,1743436281075,-500.0,0.00049214,120]
[356933401,1743436281085,-276.79240988,0.00049214,120]
[356933402,1743436281095,-500.0,0.00049214,120]
[356933403,1743436281104,-500.0,0.00049314,120]
[356933404,1743436281114,-500.0,0.00049314,120]
[356933405,1743436281124,-500.0,0.00049314,120]
[356933406,1743436281134,-500.0,0.00049314,120]
[356933407,1743436281144,-500.0,0.00049314,120]
[356933408,1743436281153,-500.0,0.00049314,120]
[356933409,1743436281163,-500.0,0.00049314,120]
[356933410,1743436281173,-500.0,0.00049314,120]
[356933411,1743436281183,-500.0,0.00049314,120]
[356933412,1743436281193,-500.0,0.00049314,120]
[356933413,1743436281204,-500.0,0.00049314,120]
[356933414,1743436281214,-445.9345007,0.00049314,120]
[356933415,1743436281474,-54.0654993,0.00049314,120]
[356933416,1743436281485,-500.0,0.00049314,120]
[356933417,1743436281494,-500.0,0.00049314,120]
[356933418,1743436281504,-903.18095526,0.00049314,12]
[356933419,1743436281516,-1189.33499715,0.00049314,12]
[356933421,1743436996957,695.07921831,0.00033804,120]
[356933422,1743436999962,1185.32269672,0.00033804,120]
[356933423,1743437194205,-154.32,0.00026849,2]
[356933424,1743437194228,-150.0,0.00028192,2]
[356933425,1743437194251,-150.0,0.00029534,2]
[356933426,1743437194273,-150.0,0.00036342,2]
[356933427,1743437194295,-150.0,0.00044999,4]
[356933428,1743437194315,-3734.72692509,0.00045,30]
[356933429,1743437254052,1085.06574534,0.00033804,30]
[356933430,1743437258409,984.62,0.00033804,60]
[356933431,1743437290404,1000.0,0.00033804,120]
[356933432,1743437290607,1023.68904861,0.00033804,120]
[356933433,1743437294990,204.0,0.00033804,120]
[356933434,1743437348980,598.85534402,0.00033804,60]
[356933435,1743437403238,1022.10536575,0.00033804,30]
[356933436,1743437431770,-160.27,0.000338,30]
[356933437,1743437431781,-362.046062,0.00044662,2]
[356933438,1743437431791,-150.0,0.00044887,2]
[356933439,1743437431801,-2139.1795777,0.00045,30]
[356933440,1743437431813,-454.92529219,0.00045,30]
[356933441,1743437431826,-476.47053834,0.00045,30]
[356933442,1743437431837,-3230.87938606,0.00045,30]
[356933443,1743437431850,-2475.72066215,0.00045,30]
[356933444,1743437431862,-556.56315229,0.00045,30]
[356933445,1743437431877,-4602.96596203,0.00045,30]
[356933446,1743437431889,-415.09721781,0.00045,30]
[356933447,1743437431901,-308.807424,0.00045,30]
[356933448,1743437431918,-9136.48017089,0.00045,30]
[356933449,1743437431930,-1886.38084821,0.00045,30]
[356933450,1743437431942,-337.55144945,0.00045,30]
[356933451,1743437431955,-2697.1634484,0.00045,30]
[356933452,1743437431967,-2457.49286247,0.00045,30]
[356933453,1743437431979,-502.85226426,0.00045,30]
[356933454,1743437431991,-308.511995,0.00045,30]
[356933455,1743437432028,-28299.23108297,0.00045,30]
[356933456,1743437432040,-346.23041148,0.00045,30]
[356933457,1743437432052,-2693.15555652,0.00045,30]
[356933458,1743437432150,-294.09328222,0.00045,30]
[356933459,1743437432163,-1999.62442316,0.00045,30]
[356933460,1743437432175,-887.79613338,0.00045,30]
[356933461,1743437432187,-475.425,0.00045,30]
[356933462,1743437432202,-1025.55818525,0.00045,30]
[356933463,1743437432218,-1919.95861536,0.00045,30]
[356933470,1743437437768,-1647.05674392,0.00045,30]
[356933471,1743437437828,-664.512,0.00045,30]
[356933472,1743437437889,-709.08266212,0.00045,30]
[356933473,1743437437950,-3267.0,0.00045,30]
[356933474,1743437437961,-1356.55,0.00045,30]
[356933475,1743437437973,-3261.28713495,0.00045,30]
[356933476,1743437437985,-17827.75401089,0.00045,30]
[356933477,1743437437997,-3758.59430738,0.00045,30]
[356933478,1743437438013,-464.72444094,0.00045,30]
[356933479,1743437438024,-1832.76746192,0.00045,30]
[356933480,1743437438068,-11547.8293712,0.00045,30]
[356933481,1743437438078,-305.71,0.000451,2]
[356933482,1743437438088,-150.0,0.00045697,2]
[356933483,1743437438098,-353.92,0.00045763,2]
[356933484,1743437438109,-482.848,0.00046475,77]
[356933485,1743437438119,-1000.0,0.00046475,2]
[356933486,1743437438129,-3760.34452503,0.00046549,2]
[356933487,1743437438141,-21394.67923986,0.00046549,2]
[356933488,1743437438153,-7200.55713511,0.00046549,2]
[356933489,1743437438163,-705.58275941,0.00046648,15]
[356933490,1743437438173,-1000.0,0.00046817,2]
[356933491,1743437438183,-3948.0,0.00046954,2]
[356933493,1743437438193,-500.0,0.00047021,3]
[356933495,1743437438206,-500.0,0.000472,10]
[356933496,1743437438215,-307.52,0.00047396,120]
[356933497,1743437438226,-703.55210143,0.000474,7]
[356933498,1743437438237,-213.59789857,0.000474,7]
[356933500,1743437438248,-168.24796721,0.00047401,120]
[356933501,1743437438258,-250.0,0.00047402,120]
[356933502,1743437438267,-6.96724548,0.00047402,2]
[356933503,1743437438281,-477.07403386,0.00047402,2]
[356933504,1743437438296,-1571.50376747,0.00047402,2]
[356933510,1743437439943,-21844.45495319,0.00047402,2]
[356933511,1743437439953,-180.54,0.00047456,120]
[356933512,1743437439963,-6018.63,0.00047485,60]
[356933513,1743437439972,-500.0,0.00047633,2]
[356933514,1743437439982,-166.11657275,0.00047894,10]
[356933515,1743437439991,-179.04062369,0.00047973,120]
[356933516,1743437440001,-353.92,0.00048027,2]
[356933517,1743437440010,-493.67112628,0.00048555,10]
[356933518,1743437440021,-12664.44128259,0.000488,120]
[356933519,1743437440056,-407.962555,0.000488,120]
[356933520,1743437440069,-15736.09512268,0.000488,120]
[356933521,1743437440080,-500.0,0.0004915,10]
[356933522,1743437440090,-150.0,0.00049252,2]
[356933523,1743437440101,-500.0,0.00049315,120]
[356933524,1743437440112,-500.0,0.00049315,120]
[356933525,1743437440123,-500.0,0.00049315,120]
[356933526,1743437440135,-500.0,0.00049315,120]
[356933527,1743437440146,-336.75265984,0.00049315,120]
[356933528,1743437440156,-234.09,0.000494,2]
[356933529,1743437440167,-1830.14042807,0.000494,2]
[356933530,1743437440179,-1882.6086331,0.000494,2]
[356933531,1743437440191,-8736.84092565,0.000494,2]
[356933532,1743437440207,-6625.63002839,0.000494,2]
[356933533,1743437440245,-11939.61998479,0.000494,2]
[356933534,1743437440255,-2933.3541,0.00049489,2]
[356933535,1743437440266,-436.6989096,0.0005,120]
[356933536,1743437440277,-353.92,0.00050291,2]
[356933537,1743437440287,-234.09,0.000503,2]
[356933538,1743437440298,-1264.91627561,0.000503,2]
[356933539,1743437440310,-1185.4450484,0.000503,2]
[356933540,1743437440322,-1504.02127916,0.000503,2]
[356933541,1743437440334,-27060.45739683,0.000503,2]
[356933542,1743437440344,-705.58275936,0.00050343,15]
[356933543,1743437440354,-764.29,0.000508,14]
[356933544,1743437440364,-234.09,0.000511,2]
[356933545,1743437440374,-31014.84,0.000511,2]
[356933546,1743437440384,-171.61482264,0.00051475,28]
[356933547,1743437440394,-672.1217941,0.00051575,4]
[356933548,1743437440404,-224.50053822,0.0005159,4]
[356933549,1743437440414,-234.09,0.000516,2]
[356933550,1743437440423,-31014.84,0.000516,2]
[356933551,1743437440433,-533.51469648,0.00051677,120]
[356933552,1743437440444,-224.50053822,0.0005199,4]
[356933553,1743437440454,-1359.53,0.00052,120]
[356933554,1743437440464,-400.0,0.00052,120]
[356933555,1743437440474,-353.92,0.00052555,2]
[356933556,1743437440483,-1000.0,0.00052669,120]
[356933557,1743437440493,-158.96693485,0.00053078,60]
[356933558,1743437440503,-307.52,0.0005332,120]
[356933559,1743437440513,-500.0,0.00053689,60]
[356933560,1743437440523,-705.58275936,0.00054037,15]
[356933561,1743437440533,-2000.0,0.000543,7]
[356933563,1743437440542,-2000.0,0.000544,7]
[356933565,1743437440553,-2000.0,0.000545,7]
[356933567,1743437440563,-5000.0,0.000545,120]
[356933569,1743437440573,-382.05386198,0.00054694,26]
[356933571,1743437440583,-2000.0,0.000547,7]
[356933573,1743437440593,-504.03898836,0.00054773,10]
[356933575,1743437440602,-1122.5026911,0.00054784,4]
[356933577,1743437440612,-500.0,0.00054794,120]
[356933579,1743437440622,-500.0,0.00054794,120]
[356933581,1743437440632,-500.0,0.00054794,120]
[356933582,1743437440642,-500.0,0.00054794,120]
[356933584,1743437440651,-500.0,0.00054794,120]
[356933587,1743437440662,-515.63332003,0.00054794,120]
[356933588,1743437440671,-500.0,0.00054794,120]
[356933590,1743437440681,-500.0,0.00054794,120]
[356933592,1743437440691,-500.0,0.00054794,120]
[356933594,1743437440701,-500.0,0.00054794,120]
[356933596,1743437440710,-500.0,0.00054794,120]
[356933598,1743437440721,-500.0,0.00054794,120]
[356933600,1743437440730,-500.0,0.00054794,120]
[356933602,1743437440740,-500.0,0.00054794,120]
[356933604,1743437440749,-500.0,0.00054794,120]
[356933606,1743437440759,-500.0,0.00054794,120]
[356933608,1743437440768,-500.0,0.00054794,120]
[356933609,1743437440778,-299.33922095,0.00054794,120]
[356933610,1743437440788,-500.0,0.00054794,120]
[356933611,1743437440800,-521.95,0.00054794,120]
[356933612,1743437440811,-500.0,0.00054794,120]
[356933613,1743437440822,-500.0,0.00054794,120]
[356933614,1743437440831,-500.0,0.00054794,2]
[356933615,1743437440841,-500.0,0.00054794,120]
[356933616,1743437440851,-300.0,0.00054794,120]
[356933617,1743437440861,-500.0,0.00054794,120]
[356933618,1743437440870,-500.0,0.00054794,120]
[356933619,1743437440880,-280.5646987,0.00054794,120]
[356933620,1743437440890,-500.0,0.00054794,120]
[356933621,1743437440900,-500.33923495,0.00054794,120]
[356933622,1743437440910,-500.0,0.00054794,120]
[356933623,1743437440920,-500.0,0.00054794,120]
[356933624,1743437440930,-500.0,0.00054794,120]
[356933625,1743437440939,-500.0,0.00054794,60]
[356933626,1743437440949,-500.0,0.00054794,120]
[356933627,1743437440960,-500.0,0.00054794,120]
[356933628,1743437440969,-500.0,0.00054794,120]
[356933629,1743437440979,-500.0,0.00054794,120]
[356933630,1743437440989,-500.0,0.00054794,120]
[356933631,1743437440999,-500.0,0.00054794,120]
[356933632,1743437441009,-500.0,0.00054794,120]
[356933633,1743437441019,-500.0,0.00054794,120]
[356933634,1743437441028,-500.0,0.00054794,120]
[356933635,1743437441038,-500.0,0.00054794,120]
[356933636,1743437441049,-500.0,0.00054794,120]
[356933637,1743437441060,-500.0,0.00054794,120]
[356933638,1743437441070,-500.0,0.00054794,120]
[356933639,1743437441079,-500.0,0.00054794,120]
[356933640,1743437441089,-500.0,0.00054794,120]
[356933641,1743437441099,-219.29310165,0.00054794,120]
[356933642,1743437441109,-286.09052135,0.00054794,120]
[356933643,1743437441119,-500.0,0.00054794,120]
[356933644,1743437441129,-500.0,0.00054794,120]
[356933645,1743437441139,-500.0,0.00054794,120]
[356933646,1743437441148,-500.0,0.00054794,120]
[356933647,1743437441158,-500.0,0.00054794,120]
[356933648,1743437441167,-500.0,0.00054794,120]
[356933649,1743437441179,-500.0,0.00054794,120]
[356933650,1743437441188,-500.0,0.00054794,120]
[356933651,1743437441201,-500.0,0.00054794,120]
[356933652,1743437441210,-500.0,0.00054794,120]
[356933653,1743437441220,-500.0,0.00054794,120]
[356933654,1743437441229,-500.0,0.00054794,120]
[356933655,1743437441241,-297.82247134,0.00054794,120]
[356933656,1743437441251,-500.0,0.00054794,120]
[356933657,1743437441262,-500.0,0.00054794,120]
[356933658,1743437441273,-500.0,0.00054794,120]
[356933659,1743437441284,-500.0,0.00054794,120]
[356933660,1743437441293,-500.0,0.00054794,120]
[356933661,1743437441305,-500.0,0.00054794,120]
[356933662,1743437441317,-500.0,0.00054794,120]
[356933663,1743437441327,-500.0,0.00054794,120]
[356933664,1743437441336,-500.0,0.00054794,120]
[356933665,1743437441346,-500.0,0.00054794,120]
[356933666,1743437441356,-500.0,0.00054794,120]
[356933667,1743437441366,-500.0,0.00054794,120]
[356933668,1743437441375,-500.0,0.00054794,120]
[356933669,1743437441387,-579.19,0.00054794,120]
[356933670,1743437441398,-500.0,0.00054794,120]
[356933671,1743437441408,-500.0,0.00054794,120]
[356933672,1743437441419,-500.0,0.00054794,120]
[356933673,1743437441428,-500.0,0.00054794,120]
[356933674,1743437441438,-500.0,0.00054794,120]
[356933675,1743437441448,-500.0,0.00054794,120]
[356933676,1743437441457,-500.0,0.00054794,120]
[356933677,1743437441467,-500.0,0.00054794,120]
[356933678,1743437441477,-500.0,0.00054794,120]
[356933679,1743437441487,-500.0,0.00054794,120]
[356933680,1743437441498,-846.91,0.00054794,120]
[356933681,1743437441507,-500.0,0.00054794,120]
[356933682,1743437441517,-500.0,0.00054794,120]
[356933683,1743437441527,-567.35,0.00054794,120]
[356933684,1743437441536,-500.0,0.00054794,120]
[356933685,1743437441547,-500.0,0.00054794,120]
[356933686,1743437441556,-500.0,0.00054794,120]
[356933687,1743437441566,-500.0,0.00054794,120]
[356933688,1743437441575,-500.0,0.00054794,120]
[356933689,1743437441587,-500.0,0.00054794,120]
[356933690,1743437441600,-1167.29,0.00054794,120]
[356933691,1743437441609,-500.0,0.00054794,120]
[356933692,1743437441620,-258.79894733,0.00054794,120]
[356933693,1743437441629,-500.0,0.00054794,120]
[356933694,1743437441639,-500.0,0.00054794,120]
[356933695,1743437441649,-500.0,0.00054794,120]
[356933696,1743437441659,-500.0,0.00054794,120]
[356933697,1743437441669,-500.0,0.00054794,120]
[356933698,1743437441680,-500.0,0.00054794,120]
[356933699,1743437441690,-500.0,0.00054794,120]
[356933700,1743437441700,-500.0,0.00054794,120]
[356933701,1743437441709,-500.0,0.00054794,120]
[356933702,1743437441719,-559.19,0.00054794,120]
[356933703,1743437441728,-1000.0,0.00054794,120]
[356933704,1743437441738,-500.0,0.00054794,120]
[356933705,1743437441749,-500.0,0.00054794,120]
[356933706,1743437441758,-500.0,0.00054794,120]
[356933707,1743437441768,-500.0,0.00054794,120]
[356933708,1743437441778,-500.0,0.00054794,120]
[356933709,1743437441788,-500.0,0.00054794,120]
[356933710,1743437441798,-500.0,0.00054794,120]
[356933711,1743437441808,-500.0,0.00054794,120]
[356933712,1743437441818,-500.0,0.00054794,120]
[356933713,1743437441828,-500.0,0.00054794,120]
[356933714,1743437441838,-500.0,0.00054794,120]
[356933715,1743437441849,-500.0,0.00054794,120]
[356933716,1743437441859,-500.0,0.00054794,120]
[356933717,1743437441868,-179.98413288,0.00054794,120]
[356933718,1743437441878,-500.0,0.00054794,120]
[356933719,1743437441888,-500.0,0.00054794,120]
[356933720,1743437441898,-500.0,0.00054794,120]
[356933721,1743437441908,-500.0,0.00054794,120]
[356933722,1743437441918,-500.0,0.00054794,120]
[356933723,1743437441928,-500.0,0.00054794,120]
[356933724,1743437441938,-500.0,0.00054794,120]
[356933725,1743437441948,-500.0,0.00054794,120]
[356933726,1743437441959,-500.0,0.00054794,120]
[356933727,1743437441968,-500.0,0.00054794,120]
[356933728,1743437441980,-500.0,0.00054794,120]
[356933729,1743437441990,-500.0,0.00054794,120]
[356933730,1743437442000,-500.0,0.00054794,120]
[356933731,1743437442010,-500.0,0.00054794,120]
[356933732,1743437442033,-500.0,0.00054794,120]
[356933733,1743437442045,-500.0,0.00054794,120]
[356933734,1743437442055,-500.0,0.00054794,120]
[356933735,1743437442065,-500.0,0.00054794,120]
[356933736,1743437442084,-3238.8,0.00054794,12]
[356933737,1743437442094,-500.0,0.00054794,120]
[356933738,1743437442105,-500.0,0.00054794,120]
[356933739,1743437442114,-500.0,0.00054794,120]
[356933740,1743437442124,-500.0,0.00054794,120]
[356933741,1743437442134,-500.0,0.00054794,120]
[356933742,1743437442144,-500.0,0.00054794,120]
[356933743,1743437442154,-500.0,0.00054794,120]
[356933744,1743437442164,-444.54391132,0.00054794,120]
[356933745,1743437442174,-500.0,0.00054794,120]
[356933746,1743437442184,-500.0,0.00054794,120]
[356933747,1743437442194,-244.21204195,0.00054794,120]
[356933748,1743437442209,-500.0,0.00054794,30]
[356933749,1743437442219,-500.0,0.00054794,120]
[356933750,1743437442229,-500.0,0.00054794,120]
[356933751,1743437442239,-500.0,0.00054794,120]
[356933752,1743437442249,-500.0,0.00054794,120]
[356933753,1743437442259,-500.0,0.00054794,120]
[356933754,1743437442269,-500.0,0.00054794,120]
[356933755,1743437442279,-500.0,0.00054794,2]
[356933756,1743437442290,-200.28135925,0.00054794,120]
[356933757,1743437442301,-500.0,0.00054794,120]
[356933758,1743437442311,-500.0,0.00054794,120]
[356933759,1743437442321,-652.51,0.00054794,120]
[356933760,1743437442331,-500.0,0.00054794,120]
[356933761,1743437442342,-551.75,0.00054794,120]
[356933762,1743437442352,-500.0,0.00054794,120]
[356933763,1743437442362,-500.0,0.00054794,100]
[356933764,1743437442374,-500.0,0.00054794,120]
[356933765,1743437442385,-500.0,0.00054794,120]
[356933766,1743437442395,-500.0,0.00054794,120]
[356933767,1743437442406,-500.0,0.00054794,120]
[356933768,1743437442416,-500.0,0.00054794,120]
[356933769,1743437442425,-500.0,0.00054794,120]
[356933770,1743437442435,-500.0,0.00054794,120]
[356933771,1743437442445,-500.0,0.00054794,120]
[356933772,1743437442455,-450.62847449,0.00054794,120]
[356933774,1743437442614,-500.0,0.00054794,120]
[356933775,1743437442623,-500.0,0.00054794,120]
[356933777,1743437442633,-500.0,0.00054794,120]
[356933778,1743437442643,-500.0,0.00054794,120]
[356933779,1743437442653,-500.0,0.00054794,120]
[356933780,1743437442663,-500.0,0.00054794,120]
[356933781,1743437442673,-500.0,0.00054794,120]
[356933782,1743437442682,-500.0,0.00054794,120]
[356933783,1743437442692,-500.0,0.00054794,120]
[356933784,1743437442703,-500.0,0.00054794,120]
[356933785,1743437442714,-500.0,0.00054794,120]
[356933786,1743437442723,-500.0,0.00054794,120]
[356933787,1743437442734,-500.0,0.00054794,120]
[356933788,1743437442744,-500.0,0.00054794,120]
[356933789,1743437442754,-596.5,0.00054794,120]
[356933790,1743437442764,-500.0,0.00054794,120]
[356933791,1743437442775,-281.22,0.00054794,120]
[356933792,1743437442785,-500.0,0.00054794,120]
[356933793,1743437442796,-500.0,0.00054794,120]
[356933794,1743437442805,-500.0,0.00054794,120]
[356933795,1743437442816,-648.25161024,0.00054794,120]
[356933796,1743437442826,-519.79352783,0.00054794,120]
[356933797,1743437442836,-500.0,0.00054794,120]
[356933798,1743437442846,-500.0,0.00054794,120]
[356933799,1743437442855,-500.0,0.00054794,120]
[356933800,1743437442866,-511.05562404,0.00054794,120]
[356933801,1743437442876,-500.0,0.00054794,120]
[356933802,1743437442886,-569.58,0.00054794,120]
[356933804,1743437442895,-500.0,0.00054794,120]
[356933805,1743437442905,-500.0,0.00054794,120]
[356933806,1743437442915,-500.0,0.00054794,120]
[356933808,1743437442924,-500.0,0.00054794,120]
[356933809,1743437442934,-500.0,0.00054794,120]
[356933810,1743437442943,-500.0,0.00054794,120]
[356933811,1743437442953,-500.0,0.00054794,120]
[356933812,1743437442963,-500.0,0.00054794,120]
[356933813,1743437442972,-500.0,0.00054794,120]
[356933814,1743437442982,-500.0,0.00054794,120]
[356933815,1743437443002,-500.0,0.00054794,120]
[356933816,1743437443013,-500.0,0.00054794,120]
[356933817,1743437443023,-1000.0,0.00054794,120]
[356933818,1743437443033,-500.0,0.00054794,120]
[356933819,1743437443043,-500.0,0.00054794,120]
[356933820,1743437443053,-500.0,0.00054794,120]
[356933821,1743437443064,-500.0,0.00054794,120]
[356933822,1743437443074,-500.0,0.00054794,120]
[356933823,1743437443084,-500.0,0.00054794,120]
[356933824,1743437443094,-500.0,0.00054794,30]
[356933825,1743437443104,-500.0,0.00054794,120]
[356933826,1743437443115,-500.0,0.00054794,120]
[356933827,1743437443127,-500.0,0.00054794,120]
[356933828,1743437443136,-500.0,0.00054794,120]
[356933829,1743437443146,-859.92,0.00054794,120]
[356933830,1743437443155,-502.27286455,0.00054794,120]
[356933831,1743437443166,-500.0,0.00054794,120]
[356933832,1743437443176,-500.0,0.00054794,120]
[356933833,1743437443186,-370.71921576,0.00054794,120]
[356933834,1743437443198,-500.0,0.00054794,120]
[356933835,1743437443207,-500.0,0.00054794,120]
[356933836,1743437443218,-500.0,0.00054794,120]
[356933837,1743437443228,-500.0,0.00054794,120]
[356933838,1743437443239,-500.0,0.00054794,120]
[356933839,1743437443249,-399.57928791,0.00054794,120]
[356933840,1743437443259,-500.0,0.00054794,120]